[Event "*** Titled Tuesday Blitz"]
[Site "Chess.com"]
[Date "2020.01.07"]
[Round "8"]
[White "TwentyHourADay"]
[Black "stoleriu"]
[Result "0-1"]
[WhiteElo "2241"]
[BlackElo "2545"]
[TimeControl "180+2"]
[EndTime "14:54:06 PST"]
[Termination "stoleriu won by resignation"]

1. d4 {[%clk 0:03:01.9]} 1... e6 {[%clk 0:02:57]} 2. c4 {[%clk 0:03:01.9]} 2...
b6 {[%clk 0:02:55.8]} 3. a3 {[%clk 0:02:58.4]} 3... Bb7 {[%clk 0:02:55.6]} 4.
Nc3 {[%clk 0:02:59.2]} 4... f5 {[%clk 0:02:51]} 5. d5 {[%clk 0:02:58.9]} 5...
Nf6 {[%clk 0:02:51.5]} 6. g3 {[%clk 0:02:57.2]} 6... Bd6 {[%clk 0:02:50.3]} 7.
Bg2 {[%clk 0:02:58.1]} 7... O-O {[%clk 0:02:48.7]} 8. Nf3 {[%clk 0:02:58.3]}
8... a5 {[%clk 0:02:48.8]} 9. O-O {[%clk 0:02:56.7]} 9... Na6 {[%clk 0:02:49.5]}
10. Nd4 {[%clk 0:02:52.6]} 10... Qe8 {[%clk 0:02:42.2]} 11. e3 {[%clk
0:02:43.2]} 11... Nc5 {[%clk 0:02:33.1]} 12. Ndb5 {[%clk 0:02:11.3]} 12... Nfe4
{[%clk 0:02:17.1]} 13. Nxd6 {[%clk 0:02:06.6]} 13... cxd6 {[%clk 0:02:19]} 14.
Nb5 {[%clk 0:01:59.6]} 14... Qe7 {[%clk 0:02:15.1]} 15. b3 {[%clk 0:01:33.8]}
15... exd5 {[%clk 0:01:37.7]} 16. Nc7 {[%clk 0:01:23.1]} 16... Ra7 {[%clk
0:00:55.9]} 17. Nxd5 {[%clk 0:01:23.5]} 17... Bxd5 {[%clk 0:00:56.5]} 18. Qxd5+
{[%clk 0:01:23.9]} 18... Qf7 {[%clk 0:00:57.9]} 19. Qd1 {[%clk 0:01:13.2]} 19...
a4 {[%clk 0:00:53.5]} 20. Bb2 {[%clk 0:01:08.8]} 20... Nxb3 {[%clk 0:00:53.1]}
21. Qe2 {[%clk 0:00:57.6]} 21... Nxa1 {[%clk 0:00:50.6]} 22. Rxa1 {[%clk
0:00:57.4]} 22... Rc7 {[%clk 0:00:51.9]} 23. Rc1 {[%clk 0:00:57.9]} 23... Rfc8
{[%clk 0:00:50.7]} 24. f3 {[%clk 0:00:58]} 24... Nf6 {[%clk 0:00:46.1]} 25. Bf1
{[%clk 0:00:57]} 25... d5 {[%clk 0:00:44.7]} 26. Qd1 {[%clk 0:00:50.5]} 26...
dxc4 {[%clk 0:00:42]} 27. Qxa4 {[%clk 0:00:51.1]} 27... c3 {[%clk 0:00:42.2]}
28. Ba1 {[%clk 0:00:51.4]} 28... Qe6 {[%clk 0:00:32.7]} 29. Qd4 {[%clk
0:00:43.9]} 29... Nd5 {[%clk 0:00:27.6]} 30. e4 {[%clk 0:00:40.3]} 30... fxe4
{[%clk 0:00:25.1]} 31. fxe4 {[%clk 0:00:39.5]} 31... Nf6 {[%clk 0:00:25.9]} 32.
e5 {[%clk 0:00:29.3]} 32... Qd5 {[%clk 0:00:24.4]} 33. Qf4 {[%clk 0:00:19.9]}
33... Ne4 {[%clk 0:00:22.2]} 34. Bg2 {[%clk 0:00:10.3]} 34... Qd4+ {[%clk
0:00:17]} 35. Kf1 {[%clk 0:00:11.6]} 35... Rf8 {[%clk 0:00:14.9]} 0-1

[Event "*** Titled Tuesday Blitz"]
[Site "Chess.com"]
[Date "2020.01.07"]
[Round "8"]
[White "Vegan4future"]
[Black "DamianoLew95"]
[Result "0-1"]
[WhiteElo "2442"]
[BlackElo "2589"]
[TimeControl "180+2"]
[EndTime "14:54:08 PST"]
[Termination "DamianoLew95 won by resignation"]

1. d4 {[%clk 0:02:57.2]} 1... d5 {[%clk 0:02:59.1]} 2. c4 {[%clk 0:02:54.4]}
2... c6 {[%clk 0:02:59.9]} 3. Nf3 {[%clk 0:02:49.8]} 3... Nf6 {[%clk 0:02:58.9]}
4. e3 {[%clk 0:02:51]} 4... Bf5 {[%clk 0:02:52]} 5. Nc3 {[%clk 0:02:51.6]} 5...
e6 {[%clk 0:02:52.9]} 6. Nh4 {[%clk 0:02:52.8]} 6... Bg6 {[%clk 0:02:54]} 7. Qb3
{[%clk 0:02:54.3]} 7... Qb6 {[%clk 0:02:54.2]} 8. Nxg6 {[%clk 0:02:54.5]} 8...
hxg6 {[%clk 0:02:54.8]} 9. Bd2 {[%clk 0:02:55.7]} 9... Nbd7 {[%clk 0:02:55.3]}
10. g3 {[%clk 0:02:47.3]} 10... Qxb3 {[%clk 0:02:54.2]} 11. axb3 {[%clk
0:02:47.6]} 11... a6 {[%clk 0:02:55.5]} 12. Bg2 {[%clk 0:02:48.2]} 12... Bd6
{[%clk 0:02:44.1]} 13. f4 {[%clk 0:02:48.6]} 13... Ng4 {[%clk 0:02:27.5]} 14. h3
{[%clk 0:02:46.5]} 14... Ngf6 {[%clk 0:02:28.1]} 15. Ke2 {[%clk 0:02:47.5]}
15... Ng8 {[%clk 0:02:20.8]} 16. c5 {[%clk 0:02:39.3]} 16... Bc7 {[%clk
0:02:19.7]} 17. b4 {[%clk 0:02:41.2]} 17... Rb8 {[%clk 0:02:13.5]} 18. Be1
{[%clk 0:02:11.7]} 18... Ne7 {[%clk 0:02:14]} 19. g4 {[%clk 0:02:12.6]} 19... f6
{[%clk 0:02:12.6]} 20. Bg3 {[%clk 0:02:12.8]} 20... g5 {[%clk 0:02:06.5]} 21.
Kf2 {[%clk 0:02:13.5]} 21... gxf4 {[%clk 0:02:06.7]} 22. exf4 {[%clk 0:02:12.4]}
22... Ng6 {[%clk 0:02:06.2]} 23. Kf3 {[%clk 0:01:40.3]} 23... e5 {[%clk
0:02:01.4]} 24. Rae1 {[%clk 0:01:35.6]} 24... Kf7 {[%clk 0:01:51.4]} 25. f5
{[%clk 0:01:25.7]} 25... Nh4+ {[%clk 0:01:47.8]} 26. Bxh4 {[%clk 0:01:25.8]}
26... Rxh4 {[%clk 0:01:44.7]} 27. Ne2 {[%clk 0:01:24.7]} 27... e4+ {[%clk
0:01:34.2]} 28. Ke3 {[%clk 0:01:19.4]} 28... Rbh8 {[%clk 0:01:34]} 29. Nf4
{[%clk 0:01:10]} 29... Bxf4+ {[%clk 0:01:33.5]} 30. Kxf4 {[%clk 0:01:11.9]}
30... g6 {[%clk 0:01:29.8]} 31. fxg6+ {[%clk 0:01:11.7]} 31... Kxg6 {[%clk
0:01:30.6]} 32. Ref1 {[%clk 0:01:12.7]} 32... Nf8 {[%clk 0:01:27.5]} 33. Kg3
{[%clk 0:01:09.6]} 33... Ne6 {[%clk 0:01:25.2]} 34. Rf5 {[%clk 0:01:08.2]} 34...
Nxd4 {[%clk 0:01:24.3]} 35. Rf2 {[%clk 0:01:05.4]} 35... f5 {[%clk 0:01:23.9]}
36. gxf5+ {[%clk 0:01:02.6]} 36... Nxf5+ {[%clk 0:01:22.2]} 37. Kh2 {[%clk
0:01:04.5]} 37... Ne3 {[%clk 0:01:19.8]} 38. Rg1 {[%clk 0:00:59.2]} 38... Ng4+
{[%clk 0:01:13]} 39. Kg3 {[%clk 0:00:55]} 39... Nxf2 {[%clk 0:01:14.9]} 40. Kxf2
{[%clk 0:00:56.8]} 40... Kf5 {[%clk 0:01:14.5]} 41. Bf1 {[%clk 0:00:55.7]} 41...
d4 {[%clk 0:01:11.1]} 42. Rg7 {[%clk 0:00:56.3]} 42... R8h7 {[%clk 0:01:11]} 43.
Rg8 {[%clk 0:00:56.8]} 43... d3 {[%clk 0:01:08.5]} 44. Ke3 {[%clk 0:00:53.8]}
44... Rd7 {[%clk 0:01:07]} 45. Rf8+ {[%clk 0:00:52.8]} 45... Ke5 {[%clk
0:01:01.3]} 46. Kd2 {[%clk 0:00:53]} 46... e3+ {[%clk 0:00:58.9]} 47. Kxe3
{[%clk 0:00:53.8]} 47... d2 {[%clk 0:00:59.9]} 48. Re8+ {[%clk 0:00:54.6]} 48...
Kf6 {[%clk 0:01:00.5]} 49. Be2 {[%clk 0:00:52.6]} 49... Rxh3+ {[%clk 0:00:55.5]}
50. Ke4 {[%clk 0:00:53.1]} 50... Re7+ {[%clk 0:00:53]} 51. Rxe7 {[%clk
0:00:50.8]} 51... Kxe7 {[%clk 0:00:54.9]} 52. Kd4 {[%clk 0:00:52.2]} 52... Rh1
{[%clk 0:00:55.5]} 0-1

[Event "*** Titled Tuesday Blitz"]
[Site "Chess.com"]
[Date "2020.01.07"]
[Round "8"]
[White "Ariadna_Atreides"]
[Black "brendan174"]
[Result "1-0"]
[WhiteElo "2063"]
[BlackElo "2079"]
[TimeControl "180+2"]
[EndTime "14:54:08 PST"]
[Termination "Ariadna_Atreides won by resignation"]

1. d4 {[%clk 0:03:00.5]} 1... Nf6 {[%clk 0:03:00.8]} 2. Nf3 {[%clk 0:03:01.3]}
2... e6 {[%clk 0:03:00.9]} 3. e3 {[%clk 0:03:01.3]} 3... d5 {[%clk 0:03:00.4]}
4. Bd3 {[%clk 0:03:01.5]} 4... Be7 {[%clk 0:02:59.1]} 5. O-O {[%clk 0:03:02.6]}
5... O-O {[%clk 0:02:58.9]} 6. b3 {[%clk 0:03:04]} 6... c5 {[%clk 0:02:59.7]} 7.
Bb2 {[%clk 0:03:05.3]} 7... cxd4 {[%clk 0:02:58.1]} 8. exd4 {[%clk 0:03:05.5]}
8... Nc6 {[%clk 0:02:58.5]} 9. Nbd2 {[%clk 0:02:59.6]} 9... Bd6 {[%clk
0:02:54.6]} 10. a3 {[%clk 0:02:51.7]} 10... b6 {[%clk 0:02:53.5]} 11. Ne5 {[%clk
0:02:50.5]} 11... Qc7 {[%clk 0:02:47.4]} 12. f4 {[%clk 0:02:45.5]} 12... Bb7
{[%clk 0:02:22.4]} 13. Qe2 {[%clk 0:02:43.4]} 13... Rac8 {[%clk 0:02:09.1]} 14.
g4 {[%clk 0:02:39.5]} 14... Qe7 {[%clk 0:01:56.1]} 15. Ndf3 {[%clk 0:02:24.9]}
15... Ne8 {[%clk 0:01:16.5]} 16. Ng5 {[%clk 0:01:51.9]} 16... g6 {[%clk
0:01:12.9]} 17. Qg2 {[%clk 0:01:22.1]} 17... f6 {[%clk 0:00:56.5]} 18. Nxc6
{[%clk 0:01:20.5]} 18... Bxc6 {[%clk 0:00:54.7]} 19. Nh3 {[%clk 0:01:18.3]}
19... Ng7 {[%clk 0:00:34]} 20. a4 {[%clk 0:01:18.5]} 20... e5 {[%clk 0:00:32.2]}
21. fxe5 {[%clk 0:01:04.4]} 21... fxe5 {[%clk 0:00:33.5]} 22. Rxf8+ {[%clk
0:01:04.5]} 22... Rxf8 {[%clk 0:00:33.2]} 23. Bb5 {[%clk 0:00:51.8]} 23... Bxb5
{[%clk 0:00:28.3]} 24. Qxd5+ {[%clk 0:00:49.7]} 24... Kh8 {[%clk 0:00:19.5]} 25.
axb5 {[%clk 0:00:47.7]} 25... Qh4 {[%clk 0:00:16.5]} 26. Qg2 {[%clk 0:00:36.9]}
26... exd4 {[%clk 0:00:08.4]} 27. Bxd4 {[%clk 0:00:36.1]} 27... Qe7 {[%clk
0:00:08.6]} 28. Nf2 {[%clk 0:00:22.1]} 28... Bb8 {[%clk 0:00:04.8]} 29. Nd3
{[%clk 0:00:14.4]} 29... Qc7 {[%clk 0:00:05.2]} 30. Re1 {[%clk 0:00:12.5]} 30...
Qf7 {[%clk 0:00:03.5]} 31. Rf1 {[%clk 0:00:11.8]} 31... Qd7 {[%clk 0:00:03.8]}
1-0

[Event "*** Titled Tuesday Blitz"]
[Site "Chess.com"]
[Date "2020.01.07"]
[Round "8"]
[White "Vuk2000"]
[Black "LimeInTheCoconut"]
[Result "1-0"]
[WhiteElo "2677"]
[BlackElo "2469"]
[TimeControl "180+2"]
[EndTime "14:54:10 PST"]
[Termination "Vuk2000 won by resignation"]

1. d4 {[%clk 0:03:01.9]} 1... Nf6 {[%clk 0:03:00.1]} 2. Bg5 {[%clk 0:03:02.3]}
2... d5 {[%clk 0:03:00.4]} 3. e3 {[%clk 0:03:02.5]} 3... c5 {[%clk 0:03:00.8]}
4. Bxf6 {[%clk 0:02:58.8]} 4... gxf6 {[%clk 0:03:01.4]} 5. dxc5 {[%clk
0:02:59.1]} 5... Nc6 {[%clk 0:02:59.5]} 6. Nf3 {[%clk 0:02:59.4]} 6... e6 {[%clk
0:02:56.5]} 7. c4 {[%clk 0:02:59.9]} 7... dxc4 {[%clk 0:02:54]} 8. Nbd2 {[%clk
0:02:59.6]} 8... Bxc5 {[%clk 0:02:47.5]} 9. Bxc4 {[%clk 0:02:56.2]} 9... O-O
{[%clk 0:02:35.8]} 10. O-O {[%clk 0:02:51]} 10... f5 {[%clk 0:02:34.4]} 11. a3
{[%clk 0:02:49.7]} 11... Qf6 {[%clk 0:02:26.8]} 12. b4 {[%clk 0:02:48]} 12...
Bb6 {[%clk 0:02:24.3]} 13. Qe2 {[%clk 0:02:37.5]} 13... Rd8 {[%clk 0:02:18.9]}
14. Rfd1 {[%clk 0:02:34.5]} 14... Bd7 {[%clk 0:02:18.5]} 15. Nb3 {[%clk
0:02:01.9]} 15... Be8 {[%clk 0:02:12.4]} 16. e4 {[%clk 0:01:45]} 16... fxe4
{[%clk 0:02:01.6]} 17. Qxe4 {[%clk 0:01:44.4]} 17... Rxd1+ {[%clk 0:01:16.2]}
18. Rxd1 {[%clk 0:01:40.3]} 18... Rd8 {[%clk 0:01:18.1]} 19. Rxd8 {[%clk
0:01:28.9]} 19... Nxd8 {[%clk 0:01:20]} 20. Bd3 {[%clk 0:01:10.3]} 20... h6
{[%clk 0:01:13]} 21. b5 {[%clk 0:00:36.7]} 21... Qg7 {[%clk 0:00:50.6]} 22. a4
{[%clk 0:00:31.9]} 22... f5 {[%clk 0:00:44.2]} 23. Qe2 {[%clk 0:00:23.2]} 23...
a5 {[%clk 0:00:29.8]} 24. Bxf5 {[%clk 0:00:19.2]} 24... Bf7 {[%clk 0:00:06.8]}
25. Be4 {[%clk 0:00:14.9]} 25... Qc3 {[%clk 0:00:05.2]} 26. Nbd2 {[%clk
0:00:15.7]} 26... Qa1+ {[%clk 0:00:05.5]} 27. Ne1 {[%clk 0:00:13.4]} 27... Qxa4
{[%clk 0:00:06.4]} 28. Qg4+ {[%clk 0:00:12.2]} 28... Kf8 {[%clk 0:00:07.3]} 29.
Qf4 {[%clk 0:00:13.5]} 29... Ke7 {[%clk 0:00:02.9]} 30. Qh4+ {[%clk 0:00:12]}
30... Ke8 {[%clk 0:00:03.3]} 31. Bc6+ {[%clk 0:00:12.8]} 31... Nxc6 {[%clk
0:00:04.5]} 32. Qxa4 {[%clk 0:00:13.6]} 1-0

[Event "*** Titled Tuesday Blitz"]
[Site "Chess.com"]
[Date "2020.01.07"]
[Round "8"]
[White "tomozupan"]
[Black "BeanScreen"]
[Result "0-1"]
[WhiteElo "2197"]
[BlackElo "2389"]
[TimeControl "180+2"]
[EndTime "14:54:30 PST"]
[Termination "BeanScreen won by resignation"]

1. d4 {[%clk 0:03:01.9]} 1... d5 {[%clk 0:03:00.5]} 2. c4 {[%clk 0:02:59.7]}
2... dxc4 {[%clk 0:03:02.4]} 3. Nf3 {[%clk 0:02:57.7]} 3... a6 {[%clk
0:03:03.3]} 4. e3 {[%clk 0:02:58.6]} 4... Nf6 {[%clk 0:03:05]} 5. Bxc4 {[%clk
0:02:58.5]} 5... e6 {[%clk 0:03:06.7]} 6. O-O {[%clk 0:02:58.8]} 6... c5 {[%clk
0:03:08.4]} 7. Nc3 {[%clk 0:02:58.7]} 7... b5 {[%clk 0:03:09.5]} 8. Be2 {[%clk
0:02:59.5]} 8... Bb7 {[%clk 0:03:10.7]} 9. a4 {[%clk 0:02:54.8]} 9... b4 {[%clk
0:03:11.7]} 10. Na2 {[%clk 0:02:54.5]} 10... Nbd7 {[%clk 0:03:13.1]} 11. b3
{[%clk 0:02:49.1]} 11... Be7 {[%clk 0:03:13.3]} 12. Bb2 {[%clk 0:02:49.7]} 12...
O-O {[%clk 0:03:14]} 13. Nc1 {[%clk 0:02:48.1]} 13... Rc8 {[%clk 0:03:11.9]} 14.
Nd3 {[%clk 0:02:48.9]} 14... a5 {[%clk 0:03:06.6]} 15. dxc5 {[%clk 0:02:48.4]}
15... Nxc5 {[%clk 0:03:07.3]} 16. Nxc5 {[%clk 0:02:48.9]} 16... Bxc5 {[%clk
0:03:07.2]} 17. Qxd8 {[%clk 0:02:48.3]} 17... Rfxd8 {[%clk 0:03:08.7]} 18. Rfd1
{[%clk 0:02:45.4]} 18... Bd5 {[%clk 0:03:07.9]} 19. Rd3 {[%clk 0:02:33]} 19...
Be4 {[%clk 0:03:07.3]} 20. Rxd8+ {[%clk 0:02:29.9]} 20... Rxd8 {[%clk
0:03:09.2]} 21. Rd1 {[%clk 0:02:29.4]} 21... Rxd1+ {[%clk 0:03:00.9]} 22. Bxd1
{[%clk 0:02:29.5]} 22... Bd5 {[%clk 0:02:52.7]} 23. Nd2 {[%clk 0:02:25.8]} 23...
Nd7 {[%clk 0:02:40.6]} 24. e4 {[%clk 0:02:20.1]} 24... Bc6 {[%clk 0:02:41.2]}
25. Kf1 {[%clk 0:02:20.5]} 25... Nb6 {[%clk 0:02:39.4]} 26. Be2 {[%clk 0:02:19]}
26... f6 {[%clk 0:02:34.9]} 27. f4 {[%clk 0:02:18]} 27... Kf7 {[%clk 0:02:35.7]}
28. g4 {[%clk 0:02:17.5]} 28... Bd6 {[%clk 0:02:26.9]} 29. e5 {[%clk 0:02:11]}
29... Bc5 {[%clk 0:02:27]} 30. exf6 {[%clk 0:02:09.5]} 30... gxf6 {[%clk
0:02:28.1]} 31. h4 {[%clk 0:02:09.6]} 31... Be3 {[%clk 0:02:29.3]} 32. Nc4
{[%clk 0:01:52.6]} 32... Nxc4 {[%clk 0:02:30.2]} 33. Bxc4 {[%clk 0:01:52.8]}
33... Bxf4 {[%clk 0:02:31.5]} 34. Bd4 {[%clk 0:01:52.3]} 34... Bc7 {[%clk
0:02:28.2]} 35. Kf2 {[%clk 0:01:52.2]} 35... Ke7 {[%clk 0:02:23.5]} 36. Bc5+
{[%clk 0:01:50.2]} 36... Kd7 {[%clk 0:02:22.3]} 37. Ke3 {[%clk 0:01:50.5]} 37...
Bd5 {[%clk 0:02:18.4]} 38. Kd3 {[%clk 0:01:37.4]} 38... Kc6 {[%clk 0:02:17.1]}
39. Be7 {[%clk 0:01:37.6]} 39... Bxc4+ {[%clk 0:01:58.9]} 40. Kxc4 {[%clk
0:01:38.4]} 40... f5 {[%clk 0:01:47.8]} 41. g5 {[%clk 0:01:28]} 41... f4 {[%clk
0:01:44.7]} 42. Bf6 {[%clk 0:01:26.2]} 42... f3 {[%clk 0:01:41.7]} 43. Kd3
{[%clk 0:01:26.1]} 43... e5 {[%clk 0:01:39.1]} 44. Ke3 {[%clk 0:01:21.1]} 44...
e4 {[%clk 0:01:39.4]} 45. h5 {[%clk 0:00:58.2]} 45... Kd5 {[%clk 0:01:21.6]} 46.
g6 {[%clk 0:00:55]} 46... hxg6 {[%clk 0:01:22.4]} 47. hxg6 {[%clk 0:00:55.8]}
47... Bb6+ {[%clk 0:01:14.4]} 48. Kd2 {[%clk 0:00:54.2]} 48... e3+ {[%clk
0:01:15.5]} 49. Ke1 {[%clk 0:00:53.5]} 49... Ke6 {[%clk 0:01:10.4]} 50. Bb2
{[%clk 0:00:39.2]} 50... Bc7 {[%clk 0:01:10.2]} 51. Bd4 {[%clk 0:00:38.2]} 51...
Bg3+ {[%clk 0:01:11.3]} 52. Kd1 {[%clk 0:00:33.2]} 52... e2+ {[%clk 0:01:13.2]}
0-1

[Event "*** Titled Tuesday Blitz"]
[Site "Chess.com"]
[Date "2020.01.07"]
[Round "8"]
[White "Kostina_Nadezhda"]
[Black "Kosche007"]
[Result "0-1"]
[WhiteElo "2155"]
[BlackElo "2380"]
[TimeControl "180+2"]
[EndTime "14:54:40 PST"]
[Termination "Kosche007 won by resignation"]

1. e4 {[%clk 0:03:00.1]} 1... c5 {[%clk 0:02:59.1]} 2. Nf3 {[%clk 0:03:01.1]}
2... d6 {[%clk 0:03:00.1]} 3. d4 {[%clk 0:03:01.8]} 3... cxd4 {[%clk 0:03:01.1]}
4. Nxd4 {[%clk 0:03:03.1]} 4... Nf6 {[%clk 0:03:02.4]} 5. Nc3 {[%clk 0:03:02.1]}
5... a6 {[%clk 0:03:03.7]} 6. g3 {[%clk 0:03:02.6]} 6... e5 {[%clk 0:03:04.2]}
7. Nb3 {[%clk 0:02:59.2]} 7... b5 {[%clk 0:03:05.1]} 8. Bg2 {[%clk 0:02:59.9]}
8... Bb7 {[%clk 0:03:05.6]} 9. O-O {[%clk 0:03:00.4]} 9... Nbd7 {[%clk
0:03:06.7]} 10. Be3 {[%clk 0:02:57.8]} 10... Be7 {[%clk 0:03:07.2]} 11. g4
{[%clk 0:02:51.5]} 11... h6 {[%clk 0:03:06.5]} 12. Qe2 {[%clk 0:02:43.2]} 12...
Rc8 {[%clk 0:03:06.4]} 13. Rad1 {[%clk 0:02:42.4]} 13... Qc7 {[%clk 0:02:56.4]}
14. a3 {[%clk 0:02:32.5]} 14... g5 {[%clk 0:02:50.8]} 15. Rfe1 {[%clk 0:02:28]}
15... Nb6 {[%clk 0:02:44.2]} 16. Nd2 {[%clk 0:02:10.4]} 16... Nc4 {[%clk
0:02:35]} 17. Nxc4 {[%clk 0:02:06.4]} 17... Qxc4 {[%clk 0:02:36.1]} 18. Qf3
{[%clk 0:02:00.7]} 18... b4 {[%clk 0:02:16]} 19. Bf1 {[%clk 0:01:53]} 19... Bxe4
{[%clk 0:01:51.1]} 20. Nxe4 {[%clk 0:01:41.8]} 20... Qxe4 {[%clk 0:01:52.1]} 21.
Qxe4 {[%clk 0:01:41.9]} 21... Nxe4 {[%clk 0:01:53.2]} 22. Bxa6 {[%clk
0:01:42.5]} 22... Rb8 {[%clk 0:01:27.6]} 23. axb4 {[%clk 0:01:40]} 23... Rxb4
{[%clk 0:01:08.5]} 24. c3 {[%clk 0:01:37]} 24... Rxb2 {[%clk 0:00:56.2]} 25. Bc1
{[%clk 0:01:35.3]} 25... Rb6 {[%clk 0:00:57]} 26. Rxe4 {[%clk 0:01:21.4]} 26...
Rxa6 {[%clk 0:00:57.8]} 27. c4 {[%clk 0:01:16.6]} 27... f6 {[%clk 0:00:53.8]}
28. Re2 {[%clk 0:01:06.5]} 28... Kf7 {[%clk 0:00:54.4]} 29. Rb2 {[%clk
0:01:02.5]} 29... Ra1 {[%clk 0:00:48]} 30. Kg2 {[%clk 0:00:55.5]} 30... Rc8
{[%clk 0:00:48.1]} 31. Rc2 {[%clk 0:00:56.4]} 31... Ke6 {[%clk 0:00:47.3]} 32.
Rdd2 {[%clk 0:00:55.3]} 32... Ra4 {[%clk 0:00:46.6]} 33. Rd3 {[%clk 0:00:37.9]}
33... Raxc4 {[%clk 0:00:46.7]} 34. Rxc4 {[%clk 0:00:38]} 34... Rxc4 {[%clk
0:00:48.5]} 35. Be3 {[%clk 0:00:38.5]} 35... Rxg4+ {[%clk 0:00:49.4]} 36. Kf3
{[%clk 0:00:38.3]} 36... e4+ {[%clk 0:00:47.3]} 37. Kxg4 {[%clk 0:00:37.8]}
37... exd3 {[%clk 0:00:48.5]} 38. Kf3 {[%clk 0:00:36.8]} 38... d5 {[%clk
0:00:44.6]} 39. Bd2 {[%clk 0:00:32.6]} 39... Bc5 {[%clk 0:00:43.4]} 40. h3
{[%clk 0:00:29.4]} 40... f5 {[%clk 0:00:44.1]} 41. Kg2 {[%clk 0:00:29]} 41...
Kf6 {[%clk 0:00:36.4]} 42. h4 {[%clk 0:00:22.4]} 42... Kg6 {[%clk 0:00:35.9]}
43. hxg5 {[%clk 0:00:21.5]} 43... hxg5 {[%clk 0:00:37.8]} 44. Kf3 {[%clk
0:00:20.3]} 44... g4+ {[%clk 0:00:34.4]} 45. Kf4 {[%clk 0:00:19.3]} 45... Bxf2
{[%clk 0:00:32.9]} 46. Ke5 {[%clk 0:00:19]} 46... g3 {[%clk 0:00:31.1]} 0-1

[Event "*** Titled Tuesday Blitz"]
[Site "Chess.com"]
[Date "2020.01.07"]
[Round "8"]
[White "mohssenbinaddi"]
[Black "manmanlai1"]
[Result "0-1"]
[WhiteElo "2232"]
[BlackElo "2394"]
[TimeControl "180+2"]
[EndTime "14:54:43 PST"]
[Termination "manmanlai1 won by resignation"]

1. Nf3 {[%clk 0:03:01.7]} 1... d5 {[%clk 0:03:00.3]} 2. d4 {[%clk 0:03:01.8]}
2... a6 {[%clk 0:03:00]} 3. Bf4 {[%clk 0:02:53.1]} 3... c5 {[%clk 0:02:59]} 4.
e3 {[%clk 0:02:53.7]} 4... cxd4 {[%clk 0:02:59]} 5. exd4 {[%clk 0:02:53.2]} 5...
Bf5 {[%clk 0:02:55.5]} 6. c4 {[%clk 0:02:37.1]} 6... Nf6 {[%clk 0:02:49.8]} 7.
Nc3 {[%clk 0:02:36.1]} 7... e6 {[%clk 0:02:50.5]} 8. Qb3 {[%clk 0:02:36]} 8...
Ra7 {[%clk 0:02:11.4]} 9. cxd5 {[%clk 0:02:18.7]} 9... exd5 {[%clk 0:02:08.1]}
10. Bxb8 {[%clk 0:02:12.3]} 10... Qxb8 {[%clk 0:02:06.7]} 11. Nxd5 {[%clk
0:02:13.5]} 11... Nxd5 {[%clk 0:02:07.6]} 12. Qxd5 {[%clk 0:02:13.2]} 12... Bb4+
{[%clk 0:02:08.7]} 13. Nd2 {[%clk 0:02:05]} 13... Bxd2+ {[%clk 0:01:56.1]} 14.
Kxd2 {[%clk 0:02:05.8]} 14... Qf4+ {[%clk 0:01:56.9]} 15. Kc3 {[%clk 0:01:34.5]}
15... O-O {[%clk 0:01:54.9]} 16. Qf3 {[%clk 0:01:26.4]} 16... Rc8+ {[%clk
0:01:49.9]} 17. Kb3 {[%clk 0:01:25.4]} 17... Be6+ {[%clk 0:01:47.3]} 18. d5
{[%clk 0:01:23.9]} 18... Qxf3+ {[%clk 0:01:44.5]} 19. gxf3 {[%clk 0:01:24.3]}
19... Bxd5+ {[%clk 0:01:45.8]} 20. Ka3 {[%clk 0:01:25.2]} 20... Bxf3 {[%clk
0:01:45.4]} 21. Rg1 {[%clk 0:01:24.9]} 21... b5 {[%clk 0:01:41.2]} 22. Rg3
{[%clk 0:01:16.3]} 22... Bd5 {[%clk 0:01:39.8]} 23. Rd1 {[%clk 0:01:14.7]} 23...
Be6 {[%clk 0:01:40.5]} 24. Rgd3 {[%clk 0:01:12.5]} 24... g5 {[%clk 0:01:38.1]}
25. Rd8+ {[%clk 0:01:12.1]} 25... Rxd8 {[%clk 0:01:38.4]} 26. Rxd8+ {[%clk
0:01:14]} 26... Kg7 {[%clk 0:01:39.9]} 27. b3 {[%clk 0:01:11.8]} 27... Rc7
{[%clk 0:01:37.5]} 28. Ra8 {[%clk 0:01:10.5]} 28... Rc1 {[%clk 0:01:28.4]} 29.
Bd3 {[%clk 0:01:07]} 29... Bc8 {[%clk 0:01:20]} 30. f3 {[%clk 0:00:57]} 30... h5
{[%clk 0:01:19.4]} 31. Be4 {[%clk 0:00:55.8]} 31... f5 {[%clk 0:01:12]} 32. Bd5
{[%clk 0:00:55.2]} 32... Kf6 {[%clk 0:01:11.4]} 33. Kb2 {[%clk 0:00:50.1]} 33...
Rc7 {[%clk 0:01:11.5]} 34. b4 {[%clk 0:00:43.5]} 34... Ke5 {[%clk 0:01:11.9]}
35. Bf7 {[%clk 0:00:39.9]} 35... h4 {[%clk 0:01:10.7]} 36. Bb3 {[%clk
0:00:33.2]} 36... Kd6 {[%clk 0:00:49.7]} 37. Bc2 {[%clk 0:00:26.5]} 37... Ke5
{[%clk 0:00:48.8]} 38. a4 {[%clk 0:00:22.1]} 38... bxa4 {[%clk 0:00:46]} 39.
Bxa4 {[%clk 0:00:23]} 39... g4 {[%clk 0:00:44.5]} 40. fxg4 {[%clk 0:00:22.7]}
40... fxg4 {[%clk 0:00:46.4]} 41. Bd1 {[%clk 0:00:23.8]} 41... Kf4 {[%clk
0:00:45.2]} 42. Be2 {[%clk 0:00:22.5]} 42... g3 {[%clk 0:00:44.8]} 43. hxg3+
{[%clk 0:00:22.3]} 43... hxg3 {[%clk 0:00:45.2]} 44. Bxa6 {[%clk 0:00:24.2]}
44... g2 {[%clk 0:00:39.4]} 0-1